fUSD/lending_fUSD_20240706
["ID","MTS","AMOUNT","RATE_DAILY","PERIOD"]
[331328966,1720237853330,-219.844869,0.00022984,7]
[331328967,1720237853340,-219.844869,0.00022984,7]
[331328968,1720237853351,-787.71773252,0.00022984,2]
[331328969,1720237853361,-164.206919,0.00022984,7]
[331328970,1720237853372,-164.206919,0.00022984,7]
[331328971,1720237853383,-2417178.77984903,0.0002299,2]
[331328972,1720237853393,-1185842.14279152,0.0002299,2]
[331328973,1720237853885,-9313.15476798,0.0002299,2]
[331328974,1720237853896,-495686.71390333,0.0002299,2]
[331328975,1720237854031,-2989.18811094,0.0002299,2]
[331328976,1720237854043,-3385.96953395,0.0002299,2]
[331328977,1720237854055,-227873.24295478,0.0002299,2]
[331328978,1720237854067,-2640.24634518,0.0002299,2]
[331328979,1720237854079,-54313.77043431,0.0002299,2]
[331328980,1720237854091,-23460.57905045,0.0002299,2]
[331328981,1720237854104,-4572.78453988,0.0002299,2]
[331328982,1720237854116,-500.37717444,0.0002299,2]
[331328983,1720237855096,-151.0,0.00022884,7]
[331328984,1720237855106,-151.0,0.000229,7]
[331328985,1720237855119,-161319.00268234,0.0002299,2]
[331328986,1720237855132,-468.02321271,0.0002299,2]
[331328987,1720237855143,-1696.05448902,0.0002299,2]
[331328988,1720237855155,-556.93313408,0.0002299,2]
[331328989,1720237855167,-125909.61145081,0.0002299,2]
[331328990,1720237855178,-119754.96062195,0.0002299,2]
[331328991,1720237855189,-686.43993092,0.0002299,2]
[331328992,1720237855200,-257.89174156,0.0002299,2]
[331329000,1720237967576,740.0,0.00026,120]
[331329030,1720239032953,-169.41,0.00016271,2]
[331329031,1720239032963,-261.32,0.00018405,2]
[331329032,1720239032973,-959.65007813,0.00018717,2]
[331329033,1720239032982,-1138.39880609,0.00018717,2]
[331329034,1720239032991,-1302.40870252,0.00018717,2]
[331329035,1720239033001,-300.0,0.00018758,2]
[331329036,1720239033010,-658.3771383,0.00018759,2]
[331329037,1720239033020,-612.13359814,0.00018835,2]
[331329038,1720239033030,-269.73227948,0.00018864,2]
[331329039,1720239033039,-155.19679065,0.00018999,2]
[331329040,1720239033050,-2206.26597965,0.00018999,2]
[331329041,1720239033062,-3168.35,0.00018999,2]
[331329042,1720239033302,-3264.51941235,0.00018999,2]
[331329046,1720239040428,-1264.59447785,0.00018649,2]
[331329047,1720239040437,-8727.45037057,0.00018999,2]
[331329048,1720239040449,-6904.82972179,0.00018999,2]
[331329049,1720239040713,-1786.69519963,0.00018999,2]
[331329050,1720239040724,-9604.72699736,0.00018999,2]
[331329086,1720239041510,-560.53648413,0.00018999,2]
[331329087,1720239041522,-322.5,0.00018999,2]
[331329088,1720239041534,-591.0,0.00018999,2]
[331329089,1720239041545,-10312.64728852,0.00018999,2]
[331329090,1720239041556,-367.12283344,0.00018999,2]
[331329091,1720239041567,-2114.08083651,0.00018999,2]
[331329138,1720239042124,-1748.56626615,0.00018999,2]
[331329140,1720239042138,-1120.0285415,0.00018999,2]
[331329497,1720239048012,-1063.55060997,0.00018999,2]
[331329498,1720239048024,-615.13931323,0.00018999,2]
[331329502,1720239142452,169.65,0.00025297,120]
[331329503,1720239590232,429.0,0.00025,120]
[331329528,1720240234282,-1642.57190824,0.00014899,2]
[331329529,1720240234294,-393.90956028,0.00014899,2]
[331329530,1720240234305,-1033.7,0.00014899,2]
[331329531,1720240234322,-1183.25660705,0.00014899,2]
[331329532,1720240234335,-2289.26786308,0.00014899,2]
[331329533,1720240234347,-499.2998041,0.00014899,2]
[331329534,1720240234360,-578.5596183,0.00014899,2]
[331329535,1720240234373,-2219.9999988,0.00014899,2]
[331329536,1720240234385,-2299.03862477,0.00014899,2]
[331329537,1720240234398,-831.66201726,0.00014899,2]
[331329538,1720240234410,-11681.71991412,0.00014899,2]
[331329539,1720240234420,-385.57,0.00017012,2]
[331329540,1720240234431,-758.81950489,0.00017599,2]
[331329541,1720240234440,-1615.54793738,0.00017807,2]
[331329542,1720240234449,-48446.83845593,0.00017807,2]
[331329543,1720240234459,-259.17180467,0.00018432,2]
[331329544,1720240234469,-1065.76708908,0.00018619,2]
[331329545,1720240234479,-981.87,0.00018619,2]
[331329546,1720240234488,-180.52,0.00018619,2]
[331329547,1720240234500,-150.99,0.00018649,2]
[331329548,1720240234509,-184.77755721,0.00018759,2]
[331329549,1720240234520,-721.36501093,0.00018835,2]
[331329550,1720240234530,-1220.11,0.00018853,2]
[331329551,1720240234539,-467.84,0.00018864,2]
[331329552,1720240234548,-5803.57,0.00018864,2]
[331329553,1720240234558,-499.99,0.00018864,2]
[331329554,1720240234567,-294.96,0.00018867,2]
[331329555,1720240234576,-10000.0,0.00018869,2]
[331329556,1720240234586,-250.0,0.00018879,2]
[331329557,1720240234595,-200.0,0.00018891,2]
[331329558,1720240234604,-155.70346028,0.00018899,2]
[331329559,1720240234614,-2777.93,0.000189,2]
[331329560,1720240234625,-194.99439859,0.00018919,2]
[331329561,1720240234638,-227.19964772,0.00018919,2]
[331329562,1720240234649,-421.92,0.00018921,2]
[331329563,1720240234660,-1441.6,0.00018937,2]
[331329564,1720240234670,-390.92,0.00018938,2]
[331329565,1720240234681,-2248.78737,0.00018999,2]
[331329566,1720240234690,-763.236,0.00019038,2]
[331329567,1720240234700,-1000.0,0.0001907,2]
[331329568,1720240234710,-250.0,0.00019105,2]
[331329569,1720240234721,-169.87,0.00019127,2]
[331329570,1720240234730,-250.0,0.00019178,2]
[331329571,1720240234739,-1000.0,0.00019227,2]
[331329572,1720240234748,-23890.0,0.00019242,2]
[331329573,1720240234757,-385.57,0.00019276,2]
[331329574,1720240234766,-168.98040525,0.00019352,2]
[331329575,1720240234776,-1000.0,0.00019446,2]
[331329576,1720240234785,-167.68,0.00019483,2]
[331329577,1720240234794,-155.0,0.00019548,2]
[331329578,1720240234803,-2894.0,0.00019627,2]
[331329579,1720240234811,-1000.0,0.0001969,2]
[331329580,1720240234821,-208.31669417,0.00019725,2]
[331329581,1720240234830,-9573.0,0.000198,5]
[331329582,1720240234839,-207.06,0.00019819,2]
[331329583,1720240234848,-840.93344879,0.00019863,2]
[331329584,1720240234857,-207.06,0.00019874,2]
[331329585,1720240234873,-207.06,0.00019928,2]
[331329586,1720240234885,-200.0,0.00019951,2]
[331329587,1720240234895,-366.025366,0.00019964,2]
[331329588,1720240234904,-207.06,0.00019982,2]
[331329589,1720240234914,-292.57856873,0.00019997,2]
[331329590,1720240234924,-1250.0,0.0002,2]
[331329591,1720240234933,-207.06,0.00020037,2]
[331329592,1720240234943,-207.06,0.00020091,2]
[331329593,1720240234956,-207.06,0.00020145,2]
[331329594,1720240234966,-207.06,0.000202,2]
[331329595,1720240234976,-286.0,0.000202,3]
[331329596,1720240234987,-169.65,0.00020237,2]
[331329597,1720240234999,-207.06,0.00020254,2]
[331329598,1720240235009,-1941.0,0.000203,3]
[331329599,1720240235018,-207.06,0.00020308,2]
[331329600,1720240235027,-207.06,0.00020363,2]
[331329601,1720240235037,-207.06,0.00020417,2]
[331329602,1720240235048,-207.06,0.00020471,2]
[331329603,1720240235057,-207.06,0.00020526,2]
[331329604,1720240235067,-1056.84,0.00020548,2]
[331329605,1720240235077,-207.06,0.0002058,2]
[331329606,1720240235087,-207.06,0.00020635,2]
[331329607,1720240235098,-150.0,0.00020688,2]
[331329608,1720240235108,-207.06,0.00020689,2]
[331329609,1720240235117,-207.06,0.00020743,2]
[331329610,1720240235126,-207.06,0.00020798,2]
[331329611,1720240235136,-207.06,0.00020852,2]
[331329612,1720240235145,-226.38715365,0.00021,2]
[331329613,1720240235155,-173.99,0.00021088,2]
[331329614,1720240235164,-61509.34059586,0.0002127,2]
[331329615,1720240235179,-2488.32184878,0.0002127,2]
[331329616,1720240235190,-2670.35134403,0.0002127,2]
[331329617,1720240239226,-24253.17971133,0.0002127,2]
[331329620,1720240239240,-152.0,0.00021276,3]
[331329622,1720240239251,-354.94,0.0002137,2]
[331329624,1720240239263,-709.88,0.0002137,2]
[331329626,1720240239276,-354.94,0.0002137,2]
[331329628,1720240239287,-354.94,0.0002137,2]
[331329630,1720240239298,-180.0,0.00021397,2]
[331329632,1720240239308,-1719.76,0.00021507,2]
[331329634,1720240239319,-843.43,0.00021507,2]
[331329636,1720240239330,-854.33,0.00021507,2]
[331329639,1720240239340,-419.14,0.00021507,2]
[331329642,1720240239351,-419.14,0.00021507,2]
[331329644,1720240239361,-419.14,0.00021507,2]
[331329646,1720240239371,-419.14,0.00021507,2]
[331329647,1720240239382,-419.14,0.00021507,2]
[331329648,1720240239391,-385.57,0.0002154,2]
[331329649,1720240239402,-278.05,0.00021644,2]
[331329650,1720240239413,-167.7,0.00021644,2]
[331329651,1720240239423,-518.82,0.00021644,2]
[331329652,1720240239434,-1228.0,0.000217,5]
[331329653,1720240239445,-1000.0,0.00021877,2]
[331329654,1720240239455,-1000.0,0.000219,5]
[331329655,1720240239466,-480.45,0.00021918,2]
[331329656,1720240239476,-150.0,0.00021918,2]
[331329657,1720240239486,-155.0,0.0002197,2]
[331329658,1720240239496,-1000.0,0.00022,6]
[331329659,1720240239507,-1011.0,0.00022,5]
[331329660,1720240239521,-593.0,0.00022,5]
[331329661,1720240239532,-1300.0,0.00022,2]
[331329662,1720240239542,-3174.51030165,0.00022053,2]
[331329663,1720240239553,-1291.79408029,0.00022061,2]
[331329664,1720240239565,-155.36984705,0.00022064,2]
[331329665,1720240239576,-152.0,0.00022093,4]
[331329666,1720240239586,-391.54777557,0.00022109,2]
[331329667,1720240239596,-4899.68024069,0.00022375,2]
[331329668,1720240239610,-626.00035931,0.00022375,2]
[331329669,1720240239621,-399.59195124,0.00022375,2]
[331329670,1720240239633,-3696.33791476,0.00022375,2]
[331329671,1720240239645,-1282.17343972,0.00022375,2]
[331329672,1720240239657,-1149.10499428,0.00022375,2]
[331329673,1720240239668,-125.14753286,0.00022375,2]
[331329674,1720240239681,-2650.1,0.00022375,2]
[331329675,1720240240720,-117.55696714,0.00022375,2]
[331329676,1720240240730,-259.12,0.00022375,2]
[331329677,1720240240740,-2621.91632685,0.00022465,3]
[331329678,1720240240751,-6373.72779736,0.00022465,3]
[331329696,1720240241636,-579.47864116,0.00022465,3]
[331329697,1720240241648,-31583.14396173,0.00022465,3]
[331329698,1720240241658,-150.0,0.00022466,2]
[331329699,1720240241668,-340.26,0.00022466,2]
[331329700,1720240241678,-96932.85003035,0.00022475,2]
[331329701,1720240241690,-95.72275799,0.00022475,2]
[331329702,1720240241700,-4573.14074746,0.0002248,3]
[331329703,1720240241710,-150.0,0.00022495,2]
[331329704,1720240241719,-2500.0,0.000225,2]
[331329705,1720240241729,-1673.38009696,0.0002253,2]
[331329706,1720240241738,-1014.0,0.000227,2]
[331329707,1720240241748,-899.0,0.00022806,2]
[331329708,1720240241757,-386.15639759,0.00022806,2]
[331329709,1720240241978,-113.84360241,0.00022806,2]
[331329710,1720240241988,-200.0,0.00022806,2]
[331329712,1720240241997,-327.14283592,0.00022855,2]
[331329714,1720240242007,-192.84821276,0.0002287,3]
[331329756,1720240248035,-4231.55,0.0002287,3]
[331329768,1720240249289,-148.7425347,0.0002287,3]
[331329769,1720240249299,-228.5374653,0.0002288,3]
[331329770,1720240249312,-670.5,0.0002288,3]
[331329827,1720241440174,-166.04615262,0.00013899,2]
[331329828,1720241440184,-627.04,0.0001399,3]
[331329829,1720241440193,-300.0,0.00013999,2]
[331329830,1720241440203,-1808.31384738,0.00014,2]
[331329831,1720241440215,-723.62459266,0.00014,2]
[331329832,1720241440226,-1029.63690608,0.00014,2]
[331329833,1720241440237,-8404.32640704,0.00014,2]
[331329836,1720241441812,-6516.51,0.00014,2]
[331329837,1720241441978,-1886.88,0.00014,2]
[331329838,1720241441990,-453.44278385,0.00014,2]
[331329839,1720241442002,-6533.15841682,0.00014,2]
[331329840,1720241442013,-2326.50000047,0.00014,2]
[331329841,1720241442025,-1039.52980335,0.00014,2]
[331329842,1720241442036,-969.78150889,0.00014,2]
[331329843,1720241442048,-2798.81423502,0.00014,2]
[331329844,1720241442060,-405.85682139,0.00014,2]
[331329845,1720241442195,-2240.37422997,0.00014,2]
[331329846,1720241442207,-744.63634586,0.00014,2]
[331329847,1720241442219,-534.65503468,0.00014,2]
[331329848,1720241442231,-2980.52193553,0.00014,2]
[331329849,1720241442423,-162218.2589662,0.00014,2]
[331329884,1720241447512,-8081.54997074,0.00014,2]
[331329885,1720241447522,-5660.0,0.00015,10]
[331329886,1720241447533,-392.0745,0.00018735,2]
[331329887,1720241447543,-227.19964772,0.00018919,2]
[331329889,1720241447552,-276.54348187,0.00018919,2]
[331329890,1720241447562,-354.95,0.00019053,2]
[331329891,1720241447572,-155.0,0.0001935,2]
[331329892,1720241447581,-499.99,0.00019389,2]
[331329893,1720241447591,-721.36501093,0.00019399,2]
[331329894,1720241447601,-6756.3942821,0.00019725,2]
[331329895,1720241447611,-1000.0,0.00019845,2]
[331329896,1720241447622,-157.7415,0.0001989,2]
[331329897,1720241447632,-2500.0,0.000203,2]
[331329898,1720241447642,-150.0,0.00020688,2]
[331329899,1720241447656,-2207.6,0.00020827,2]
[331329900,1720241447671,-250.0,0.00020918,2]
[331329901,1720241447680,-250.0,0.00020963,2]
[331329902,1720241447690,-449.33718008,0.00020966,2]
[331329905,1720241449978,-897.03281992,0.00020966,2]
[331329906,1720241449987,-250.0,0.00020972,2]
[331329907,1720241449997,-451.22601595,0.00021061,2]
[331329914,1720241451136,-548.77398405,0.00021061,2]
[331329915,1720241451146,-169.65,0.00021077,2]
[331329916,1720241451156,-1285.859492,0.0002109,2]
[331329937,1720242172518,1000.0,0.00025,60]
[331329938,1720242202551,1000.0,0.00025,60]
[331329939,1720242224587,1000.0,0.00025,60]
[331329940,1720242236439,1000.0,0.00025,60]
[331329941,1720242282293,5000.0,0.00025,60]
[331329982,1720242638126,-337.2,0.00017936,2]
[331329984,1720242638136,-150.0,0.00018826,2]
[331329985,1720242638150,-754.53529234,0.00019259,2]
[331329988,1720242638659,-245.46470766,0.00019259,2]
[331329989,1720242638668,-1000.0,0.0001928,2]
[331329990,1720242638678,-1000.0,0.00019371,2]
[331329991,1720242638687,-1000.0,0.00019451,2]
[331329992,1720242638698,-1000.0,0.00019649,2]
[331329993,1720242638707,-1000.0,0.0001965,2]
[331329994,1720242638717,-499.99,0.0001965,2]
[331329995,1720242638726,-2500.0,0.000197,2]
[331329996,1720242638736,-1103.8,0.00019742,2]
[331329997,1720242638745,-250.0,0.00019759,2]
[331329998,1720242638755,-3337.83515628,0.00019804,2]
[331329999,1720242639137,-2803.50484372,0.00019804,2]
[331330000,1720242639148,-250.0,0.00019871,2]
[331330001,1720242639162,-2000.0,0.00019956,3]
[331330002,1720242639173,-1250.0,0.0002,2]
[331330003,1720242639184,-235.19,0.0002005,2]
[331330004,1720242639194,-337.2,0.000202,2]
[331330005,1720242639204,-272.0,0.000203,3]
[331330006,1720242639214,-1000.0,0.00021,15]
[331330007,1720242639223,-153.23,0.00021031,2]
[331330008,1720242639233,-1000.0,0.00021035,2]
[331330009,1720242639243,-1113.93944268,0.00021089,5]
[331330010,1720242639252,-1873.98948,0.0002109,2]
[331330011,1720242639263,-1000.0,0.000212,2]
[331330012,1720242639272,-1000.0,0.00021436,2]
[331330013,1720242639283,-1000.0,0.000215,2]
[331330014,1720242639293,-152.0,0.00021548,3]
[331330015,1720242639302,-500.0,0.0002162,2]
[331330016,1720242639312,-500.0,0.0002162,2]
[331330017,1720242639322,-264.14,0.00021644,2]
[331330018,1720242639332,-167.7,0.00021644,2]
[331330019,1720242639342,-316.8647,0.00021731,2]
[331330020,1720242639352,-258.8667,0.00021731,2]
[331330021,1720242639362,-1000.0,0.00021731,2]
[331330022,1720242639372,-3768.4263,0.00021731,2]
[331330023,1720242639382,-506.94,0.00021757,2]
[331330024,1720242639394,-1915.0,0.000218,2]
[331330025,1720242639405,-150.0,0.00021826,2]
[331330026,1720242639416,-4371.04442884,0.00021831,2]
[331330035,1720242644642,-267.06312147,0.00021831,2]
[331330036,1720242644656,-196825.45614969,0.00021831,2]
[331330038,1720242644666,-160.912299,0.00021831,2]
[331330040,1720242644676,-3174.51030165,0.00021844,2]
[331330042,1720242644686,-6333.69943011,0.00021882,2]
[331330044,1720242644696,-400.37,0.00021918,2]
[331330046,1720242644706,-1300.0,0.00022,2]
[331330048,1720242644716,-716.7434968,0.00022004,2]
[331330050,1720242644726,-1000.0,0.000223,30]
[331330052,1720242644736,-180.0,0.00022365,2]
[331330054,1720242644746,-337.2,0.00022464,2]
[331330055,1720242644756,-871.52191057,0.00022499,2]
[331330057,1720242644766,-2500.0,0.000225,2]
[331330059,1720242644775,-152.0,0.00022638,4]
[331330061,1720242644785,-500.0,0.00022717,2]
[331330063,1720242644795,-150.0,0.00022728,2]
[331330065,1720242644808,-150.0,0.00022738,2]
[331330067,1720242644818,-172.10478885,0.00022754,2]
[331330069,1720242644828,-150.0,0.0002276,2]
[331330071,1720242644837,-500.0,0.00022761,2]
[331330072,1720242644847,-200.0,0.00022761,2]
[331330074,1720242644857,-150.0,0.00022763,2]
[331330076,1720242644867,-300.0,0.00022771,2]
[331330078,1720242644876,-150.0,0.00022774,2]
[331330079,1720242644887,-150.0,0.00022787,2]
[331330080,1720242644896,-150.0,0.00022793,2]
[331330081,1720242644907,-150.0,0.00022796,2]
[331330082,1720242644917,-150.0,0.00022799,2]
[331330084,1720242644927,-500.0,0.00022805,2]
[331330085,1720242644937,-172.10478885,0.00022809,2]
[331330087,1720242644947,-66984.0199018,0.0002282,3]
[331330089,1720242644957,-11820.7093944,0.0002282,3]
[331330091,1720242644967,-82850.70972596,0.0002283,2]
[331330093,1720242644980,-449.41355224,0.0002283,2]
[331330095,1720242644992,-1525.98186201,0.0002283,2]
[331330097,1720242645004,-822.66,0.0002283,2]
[331330129,1720242648201,-150.0,0.00021918,2]
[331330130,1720242648211,-248.78932776,0.00022142,5]
[331330131,1720242648220,-150.0,0.00022495,2]
[331330132,1720242648230,-2601.21067224,0.0002283,2]
[331330184,1720243832951,-155.05946444,0.0001359,2]
[331330185,1720243832960,-1026.365218,0.00013689,2]
[331330186,1720243832971,-604.634782,0.00013689,2]
[331330187,1720243833003,-699.00786024,0.0001369,2]
[331330195,1720243833729,-1916.80238943,0.0001369,2]
[331330196,1720243833742,-1202.8908485,0.0001369,2]
[331330197,1720243833752,-222.0,0.0001633,2]
[331330198,1720243833761,-81.37685422,0.0001718,2]
[331330199,1720243833772,-140.62314578,0.0001718,2]
[331330200,1720243833781,-300.0,0.00017533,2]
[331330201,1720243833790,-265.45167786,0.00017999,2]
[331330202,1720243833802,-296.5600783,0.00017999,2]
[331330203,1720243833814,-835.21082793,0.00017999,2]
[331330204,1720243833826,-699.70135202,0.00017999,2]
[331330205,1720243833837,-561.42608599,0.00017999,2]
[331330206,1720243833847,-222.0,0.0001802,2]
[331330207,1720243833858,-320.13104876,0.0001802,2]
[331330208,1720243833870,-179.85895124,0.0001802,2]
[331330209,1720243833880,-338.54126103,0.00018453,2]
[331330210,1720243833892,-1125.38873897,0.00018453,2]
[331330211,1720243833903,-437.71,0.00018453,2]
[331330212,1720243833916,-1227.52420019,0.00018717,2]
[331330213,1720243833929,-1630.35513248,0.00018835,2]
[331330214,1720243833940,-155.73478515,0.00018835,2]
[331330215,1720243833954,-1630.35513248,0.00018835,2]
[331330216,1720243833966,-222.0,0.0001886,2]
[331330217,1720243833986,-872.61248846,0.00018899,2]
[331330218,1720243833998,-155.26782712,0.00018899,2]
[331330219,1720243834009,-157.02434713,0.00018899,2]
[331330220,1720243834019,-156.46038219,0.00018899,2]
[331330221,1720243834029,-361.9149352,0.00018899,2]
[331330222,1720243834039,-493.4705516,0.00018899,2]
[331330223,1720243834048,-1270.85793586,0.00018899,2]
[331330224,1720243834058,-308.12292157,0.00018899,2]
[331330225,1720243834068,-155.68805516,0.00018919,2]
[331330226,1720243834078,-208.63065251,0.00018919,2]
[331330227,1720243834088,-253.97336571,0.00018919,2]
[331330228,1720243834098,-208.63065251,0.00018919,2]
[331330229,1720243834109,-264.6200961,0.00018999,2]
[331330230,1720243834119,-2493.38298312,0.00018999,2]
[331330231,1720243834129,-227.19964772,0.00018999,2]
[331330232,1720243834139,-188.03426835,0.00019229,2]
[331330233,1720243834149,-213.34242468,0.00019352,2]
[331330234,1720243834161,-308.21468632,0.00019352,2]
[331330235,1720243834171,-155.24723481,0.00019399,2]
[331330236,1720243834181,-244.0,0.00019399,2]
[331330237,1720243834193,-155.22397659,0.00019565,2]
[331330238,1720243834204,-222.0,0.000197,2]
[331330239,1720243834214,-180.0,0.00019725,2]
[331330240,1720243834223,-1000.0,0.00019868,2]
[331330241,1720243834233,-2500.0,0.0002,2]
[331330242,1720243834243,-250.0,0.00020272,2]
[331330243,1720243834253,-168.42,0.00020272,2]
[331330244,1720243834263,-226.18196523,0.00020288,2]
[331330245,1720243834275,-23.81803477,0.00020288,2]
[331330246,1720243834284,-150.0,0.00020289,2]
[331330247,1720243834294,-1260.38173399,0.000203,3]
[331330248,1720243834307,-486.61826601,0.000203,3]
[331330249,1720243834316,-78.47223198,0.00020327,2]
[331330250,1720243834328,-121.52776802,0.00020327,2]
[331330251,1720243834338,-1299.66032911,0.00020332,2]
[331330252,1720243834350,-391.76967089,0.00020332,2]
[331330253,1720243834359,-166.38579105,0.00020346,2]
[331330254,1720243834371,-1266.60175907,0.00020346,2]
[331330255,1720243834383,-1603.66244988,0.00020346,2]
[331330256,1720243834392,-10000.0,0.0002035,2]
[331330257,1720243834402,-2751.0,0.00020351,2]
[331330258,1720243834412,-13352.23,0.00020352,2]
[331330259,1720243834421,-1000.0,0.00020362,2]
[331330260,1720243834431,-250.0,0.00020371,2]
[331330261,1720243834441,-154.36,0.00020485,2]
[331330262,1720243834451,-566.64,0.00020488,2]
[331330263,1720243834462,-222.0,0.0002055,2]
[331330264,1720243834478,-205.0,0.0002055,2]
[331330265,1720243834487,-154.29818798,0.00020688,2]
[331330266,1720243834497,-437.71,0.00020717,2]
[331330267,1720243834507,-154.36,0.00021019,2]
[331330268,1720243834517,-222.0,0.0002139,2]
[331330269,1720243834526,-205.0,0.0002139,2]
[331330270,1720243834536,-154.36,0.00021553,2]
[331330271,1720243834547,-528.47,0.00021644,2]
[331330272,1720243834556,-21065.4530701,0.000217,7]
[331330273,1720243834565,-4798.3702,0.00021731,2]
[331330274,1720243834575,-220.75,0.00021861,2]
[331330275,1720243834584,-150.0,0.00021918,2]
[331330276,1720243834594,-606.16,0.00021918,2]
[331330277,1720243834603,-151.13,0.00021918,2]
[331330278,1720243834613,-251.0,0.00021972,2]
[331330279,1720243834623,-166.8,0.00022192,2]
[331330280,1720243834632,-300.0,0.00022192,2]
[331330281,1720243834642,-150.0,0.00022192,2]
[331330282,1720243834651,-150.0,0.00022192,2]
[331330283,1720243834661,-329.8,0.00022192,2]
[331330284,1720243834671,-150.0,0.00022192,2]
[331330285,1720243834681,-283.74,0.00022192,2]
[331330286,1720243834690,-150.0,0.00022192,2]
[331330287,1720243834700,-848.88,0.00022192,2]
[331330288,1720243834709,-150.0,0.00022192,2]
[331330289,1720243834719,-150.0,0.00022192,2]
[331330290,1720243834728,-424.44,0.00022192,2]
[331330291,1720243834738,-424.44,0.00022192,2]
[331330292,1720243834749,-150.0,0.00022192,2]
[331330293,1720243834781,-150.0,0.00022192,2]
[331330294,1720243834790,-150.0,0.00022192,2]
[331330295,1720243834799,-424.44,0.00022192,2]
[331330296,1720243834810,-300.0,0.00022192,2]
[331330297,1720243834822,-150.0,0.00022192,2]
[331330298,1720243834832,-424.44,0.00022192,2]
[331330299,1720243834844,-150.0,0.00022192,2]
[331330300,1720243834853,-150.0,0.00022192,2]
[331330301,1720243834863,-424.44,0.00022192,2]
[331330302,1720243834873,-150.0,0.00022192,2]
[331330303,1720243834883,-424.44,0.00022192,2]
[331330304,1720243834893,-150.0,0.00022192,2]
[331330305,1720243834903,-150.0,0.00022192,2]
[331330306,1720243834913,-716.99262982,0.00022199,2]
[331330307,1720243834922,-793.14485048,0.00022211,2]
[331330308,1720243834932,-155.0,0.00022211,2]
[331330309,1720243835221,-222.0,0.0002223,2]
[331330310,1720243835232,-205.0,0.0002223,2]
[331330311,1720243835241,-500.0,0.00022305,2]
[331330312,1720243835251,-457.6,0.00022442,2]
[331330313,1720243835260,-1880.06257091,0.00022493,2]
[331330314,1720243835270,-150.0,0.00022495,2]
[331330315,1720243835280,-172.85,0.00022521,2]
[331330316,1720243835289,-180.0,0.00022541,2]
[331330317,1720243835299,-198.0,0.00022597,4]
[331330318,1720243835308,-1236.6791,0.000226,2]
[331330319,1720243835318,-2500.0,0.000227,2]
[331330320,1720243835327,-150.0,0.00022718,2]
[331330321,1720243835337,-150.0,0.00022719,2]
[331330322,1720243835346,-157.20835986,0.0002273,2]
[331330323,1720243835356,-1856.8783,0.0002273,2]
[331330324,1720243835365,-150.0,0.00022735,2]
[331330325,1720243835375,-150.0,0.00022739,2]
[331330326,1720243835384,-500.0,0.00022739,2]
[331330327,1720243835394,-200.0,0.00022739,2]
[331330328,1720243835403,-1541.50297644,0.00022744,2]
[331330329,1720243835412,-150.0,0.0002276,2]
[331330330,1720243835421,-150.0,0.00022764,2]
[331330331,1720243835431,-220.33,0.00022767,3]
[331330332,1720243835441,-150.0,0.00022775,2]
[331330333,1720243835450,-150.0,0.00022779,2]
[331330334,1720243835460,-300.0,0.00022781,2]
[331330335,1720243835474,-157.20835984,0.00022783,2]
[331330336,1720243835483,-150.0,0.00022788,2]
[331330337,1720243835492,-150.0,0.00022789,2]
[331330338,1720243835503,-150.0,0.00022802,2]
[331330339,1720243835513,-203.63992961,0.00022802,2]
[331330340,1720243835523,-150.0,0.00022803,2]
[331330341,1720243835532,-15010.4246278,0.0002282,3]
[331330342,1720243835544,-150.0,0.00022822,2]
[331330343,1720243835554,-150.0,0.00022828,2]
[331330344,1720243835564,-64997.24838778,0.0002283,2]